[Event "Snabbschacks-KM 2025"]
[Site "Linköping, Sweden"]
[Date "2025.05.20"]
[Round "9.8"]
[White "Larsson, Elin"]
[Black "Enblom, Samuel"]
[Result "1/2-1/2"]
[TimeControl "15 min + 5 sek"]
[WhiteElo "1783"]
[BlackElo "1696"]

1. e4 {[%clk 00:15:08]} d5 {[%clk 00:15:02]} {[%emt 00:00:09]} 2. exd5 {[%clk
00:15:11]} {[%emt 00:00:02]} Nf6 {[%clk 00:14:53]} {[%emt 00:00:14]} 3. d4
{[%clk 00:15:05]} {[%emt 00:00:10]} Nxd5 {[%clk 00:14:52]} {[%emt 00:00:06]} 4.
Nf3 {[%clk 00:14:38]} {[%emt 00:00:32]} Bf5 {[%clk 00:14:42]} {[%emt 00:00:14]}
5. Bd3 {[%clk 00:12:57]} {[%emt 00:01:47]} e6 {[%clk 00:13:59]} {[%emt
00:00:49]} 6. O-O {[%clk 00:09:53]} {[%emt 00:03:09]} h6 {[%clk 00:14:01]}
{[%emt 00:00:02]} 7. Re1 {[%clk 00:08:09]} {[%emt 00:01:49]} Be7 {[%clk
00:13:26]} {[%emt 00:00:41]} 8. c4 {[%clk 00:05:41]} {[%emt 00:02:34]} Bxd3
{[%clk 00:12:26]} {[%emt 00:01:04]} 9. Qxd3 {[%clk 00:05:22]} {[%emt 00:00:24]}
Nb4 {[%clk 00:12:00]} {[%emt 00:00:31]} 10. Qb3 {[%clk 00:03:27]} {[%emt
00:02:00]} b6 {[%clk 00:11:26]} {[%emt 00:00:39]} 11. a3 {[%clk 00:02:39]}
{[%emt 00:00:53]} N4c6 {[%clk 00:11:25]} {[%emt 00:00:07]} 12. Be3 {[%clk
00:01:32]} {[%emt 00:01:11]} O-O {[%clk 00:11:02]} {[%emt 00:00:28]} 13. Qd3
{[%clk 00:00:46]} {[%emt 00:00:51]} Nd7 {[%clk 00:10:45]} {[%emt 00:00:22]} 14.
Nc3 {[%clk 00:00:38]} {[%emt 00:00:13]} Nf6 {[%clk 00:10:20]} {[%emt 00:00:30]}
15. h3 {[%clk 00:00:22]} {[%emt 00:00:21]} Bd6 {[%clk 00:10:00]} {[%emt
00:00:24]} 16. Nb5 {[%clk 00:00:18]} {[%emt 00:00:09]} Re8 {[%clk 00:09:45]}
{[%emt 00:00:20]} 17. Rad1 {[%clk 00:00:17]} {[%emt 00:00:06]} a6 {[%clk
00:09:42]} {[%emt 00:00:08]} 18. Nxd6 {[%clk 00:00:14]} {[%emt 00:00:07]} Qxd6
{[%clk 00:09:37]} {[%emt 00:00:11]} 19. Qc2 {[%clk 00:00:09]} {[%emt 00:00:11]}
Ne7 {[%clk 00:09:15]} {[%emt 00:00:27]} 20. Ne5 {[%clk 00:00:08]} {[%emt
00:00:06]} Nf5 {[%clk 00:08:36]} {[%emt 00:00:44]} 21. Qd3 {[%clk 00:00:07]}
{[%emt 00:00:06]} Rad8 {[%clk 00:07:53]} {[%emt 00:00:47]} 22. Nf3 {[%clk
00:00:08]} {[%emt 00:00:05]} c5 {[%clk 00:07:38]} {[%emt 00:00:21]} 23. d5
{[%clk 00:00:07]} {[%emt 00:00:06]} exd5 {[%clk 00:07:28]} {[%emt 00:00:15]} 24.
Qxf5 {[%clk 00:00:08]} {[%emt 00:00:04]} d4 {[%clk 00:07:12]} {[%emt 00:00:19]}
25. Bf4 {[%clk 00:00:12]} {[%emt 00:00:02]} Qc6 {[%clk 00:06:11]} {[%emt
00:01:06]} 26. b3 {[%clk 00:00:10]} {[%emt 00:00:07]} g6 {[%clk 00:05:48]}
{[%emt 00:00:29]} 27. Qd3 {[%clk 00:00:11]} {[%emt 00:00:03]} h5 {[%clk
00:05:17]} {[%emt 00:00:36]} 28. Bg5 {[%clk 00:00:10]} {[%emt 00:00:06]} Rd6
{[%clk 00:05:03]} {[%emt 00:00:18]} 29. Bxf6 {[%clk 00:00:08]} {[%emt
00:00:06]} Rxf6 {[%clk 00:05:05]} {[%emt 00:00:04]} 30. Rxe8+ {[%clk 00:00:08]}
{[%emt 00:00:06]} Qxe8 {[%clk 00:05:08]} {[%emt 00:00:02]} 31. Re1 {[%clk
00:00:12]} Qb8 {[%clk 00:04:56]} {[%emt 00:00:16]} 32. Qd2 {[%clk 00:00:11]}
{[%emt 00:00:07]} Kg7 {[%clk 00:04:48]} {[%emt 00:00:14]} 33. Ne5 {[%clk
00:00:11]} {[%emt 00:00:04]} Re6 {[%clk 00:04:19]} {[%emt 00:00:34]} 34. Nf3
{[%clk 00:00:08]} {[%emt 00:00:07]} Rf6 {[%clk 00:04:18]} {[%emt 00:00:06]} 35.
Qc2 {[%clk 00:00:09]} {[%emt 00:00:05]} Qf4 {[%clk 00:04:17]} {[%emt 00:00:05]}
36. Qd2 {[%clk 00:00:10]} {[%emt 00:00:05]} Qf5 {[%clk 00:04:08]} {[%emt
00:00:14]} 37. Re5 {[%clk 00:00:11]} {[%emt 00:00:05]} Qb1+ {[%clk 00:04:06]}
{[%emt 00:00:07]} 38. Kh2 {[%clk 00:00:09]} {[%emt 00:00:07]} Qxb3 {[%clk
00:04:01]} {[%emt 00:00:11]} 39. Qc1 {[%clk 00:00:09]} {[%emt 00:00:05]} Rc6
{[%clk 00:03:37]} {[%emt 00:00:29]} 40. Nd2 {[%clk 00:00:09]} {[%emt 00:00:05]}
Qd3 {[%clk 00:03:31]} {[%emt 00:00:12]} 41. Nf3 {[%clk 00:00:08]} {[%emt
00:00:06]} b5 {[%clk 00:03:27]} {[%emt 00:00:08]} 42. Ne1 {[%clk 00:00:06]}
{[%emt 00:00:06]} Qxc4 {[%clk 00:03:23]} {[%emt 00:00:10]} 43. Qxc4 {[%clk
00:00:07]} {[%emt 00:00:04]} bxc4 {[%clk 00:03:26]} {[%emt 00:00:02]} 44. Re2
{[%clk 00:00:06]} {[%emt 00:00:06]} d3 {[%clk 00:03:27]} {[%emt 00:00:04]} 45.
Rd2 {[%clk 00:00:09]} {[%emt 00:00:02]} Re6 {[%clk 00:03:23]} {[%emt 00:00:09]}
46. Nf3 {[%clk 00:00:07]} {[%emt 00:00:07]} Re2 {[%clk 00:03:25]} {[%emt
00:00:03]} 47. Rxe2 {[%clk 00:00:06]} {[%emt 00:00:06]} dxe2 {[%clk 00:03:26]}
{[%emt 00:00:04]} 48. Kg1 {[%clk 00:00:08]} {[%emt 00:00:03]} c3 {[%clk
00:03:27]} {[%emt 00:00:04]} 49. Ne1 {[%clk 00:00:11]} {[%emt 00:00:02]} Kf6
{[%clk 00:03:25]} {[%emt 00:00:07]} 50. f3 {[%clk 00:00:09]} {[%emt 00:00:07]}
Ke5 {[%clk 00:03:23]} {[%emt 00:00:07]} 51. Nc2 {[%clk 00:00:07]} {[%emt
00:00:07]} e1=Q+ {[%clk 00:03:17]} {[%emt 00:00:11]} 52. Nxe1 {[%clk 00:00:11]}
{[%emt 00:00:01]} Kd4 {[%clk 00:03:21]} {[%emt 00:00:01]} 53. Kf2 {[%clk
00:00:09]} {[%emt 00:00:07]} Kc4 {[%clk 00:03:19]} {[%emt 00:00:07]} 54. Ke2
{[%clk 00:00:06]} {[%emt 00:00:08]} Kb3 {[%clk 00:03:23]} {[%emt 00:00:02]} 55.
Kd3 {[%clk 00:00:10]} {[%emt 00:00:01]} c4 {[%clk 00:03:25]} {[%emt 00:00:02]}
56. Kd4 {[%clk 00:00:09]} {[%emt 00:00:06]} c2 {[%clk 00:03:24]} {[%emt
00:00:07]} 57. Nxc2 {[%emt 00:00:22]} 1/2-1/2

[Event "Snabbschacks-KM 2025"]
[Site "Linköping, Sweden"]
[Date "2025.05.20"]
[Round "9.10"]
[White "Skytt, Klas"]
[Black "Andersson, Albin"]
[Result "1-0"]
[TimeControl "15 min + 5 sek"]
[WhiteElo "1705"]
[BlackElo "1728"]

1. b4 {[%clk 00:15:07]} {[%emt 00:00:02]} d5 {[%clk 00:15:01]} {[%emt
00:00:09]} 2. Bb2 {[%clk 00:15:09]} {[%emt 00:00:03]} Bf5 {[%clk 00:14:58]}
{[%emt 00:00:08]} 3. e3 {[%clk 00:14:58]} {[%emt 00:00:16]} Nd7 {[%clk
00:14:52]} {[%emt 00:00:10]} 4. c4 {[%clk 00:14:43]} {[%emt 00:00:20]} e6
{[%clk 00:14:37]} {[%emt 00:00:20]} 5. Nf3 {[%clk 00:14:35]} {[%emt 00:00:14]}
Bxb4 {[%clk 00:14:16]} {[%emt 00:00:26]} 6. Bxg7 {[%clk 00:14:37]} {[%emt
00:00:03]} Ngf6 {[%clk 00:14:15]} {[%emt 00:00:06]} 7. Bxh8 {[%clk 00:14:35]}
{[%emt 00:00:06]} Qe7 {[%clk 00:14:06]} {[%emt 00:00:14]} 8. a3 {[%clk
00:14:28]} {[%emt 00:00:12]} Ba5 {[%clk 00:14:01]} {[%emt 00:00:10]} 9. cxd5
{[%clk 00:13:58]} {[%emt 00:00:36]} exd5 {[%clk 00:13:50]} {[%emt 00:00:16]} 10.
Nd4 {[%clk 00:13:18]} {[%emt 00:00:45]} Bg6 {[%clk 00:13:40]} {[%emt 00:00:15]}
11. Bxf6 {[%clk 00:13:03]} {[%emt 00:00:20]} Nxf6 {[%clk 00:13:40]} {[%emt
00:00:05]} 12. Qa4+ {[%clk 00:12:39]} {[%emt 00:00:30]} Kf8 {[%clk 00:12:56]}
{[%emt 00:00:49]} 13. Qxa5 {[%clk 00:12:33]} {[%emt 00:00:10]} c5 {[%clk
00:12:52]} {[%emt 00:00:09]} 14. Ne2 {[%clk 00:11:39]} {[%emt 00:01:00]} b6
{[%clk 00:12:26]} {[%emt 00:00:31]} 15. Qc3 {[%clk 00:11:35]} {[%emt 00:00:08]}
Kg8 {[%clk 00:11:36]} {[%emt 00:00:55]} 16. Nf4 {[%clk 00:11:18]} {[%emt
00:00:21]} d4 {[%clk 00:10:37]} {[%emt 00:01:04]} 17. Nxg6 {[%clk 00:11:16]}
{[%emt 00:00:06]} fxg6 {[%clk 00:10:30]} {[%emt 00:00:13]} 18. Qc4+ {[%clk
00:10:58]} {[%emt 00:00:23]} Kg7 {[%clk 00:10:32]} {[%emt 00:00:03]} 19. Be2
{[%clk 00:11:00]} {[%emt 00:00:03]} Rf8 {[%clk 00:10:12]} {[%emt 00:00:25]} 20.
O-O {[%clk 00:11:01]} {[%emt 00:00:04]} Ne4 {[%clk 00:10:06]} {[%emt 00:00:12]}
21. Bf3 {[%clk 00:10:38]} {[%emt 00:00:28]} Ng5 {[%clk 00:09:45]} {[%emt
00:00:25]} 22. Bd5 {[%clk 00:10:29]} {[%emt 00:00:14]} Qe5 {[%clk 00:09:03]}
{[%emt 00:00:47]} 23. exd4 {[%clk 00:10:25]} {[%emt 00:00:09]} cxd4 {[%clk
00:08:56]} {[%emt 00:00:12]} 24. d3 {[%clk 00:10:08]} {[%emt 00:00:22]} Rf4
{[%clk 00:08:16]} {[%emt 00:00:45]} 25. Nd2 {[%clk 00:09:07]} {[%emt 00:01:06]}
h5 {[%clk 00:07:47]} {[%emt 00:00:34]} 26. Nf3 {[%clk 00:09:04]} {[%emt
00:00:08]} Nxf3+ {[%clk 00:07:47]} {[%emt 00:00:06]} 27. Bxf3 {[%clk 00:09:06]}
{[%emt 00:00:03]} h4 {[%clk 00:07:43]} {[%emt 00:00:08]} 28. Rae1 {[%clk
00:08:48]} {[%emt 00:00:24]} Qf6 {[%clk 00:07:32]} {[%emt 00:00:16]} 29. Qc7+
{[%clk 00:08:40]} {[%emt 00:00:12]} Kh6 {[%clk 00:07:31]} {[%emt 00:00:06]} 30.
Re4 {[%clk 00:08:16]} {[%emt 00:00:29]} Rf5 {[%clk 00:07:02]} {[%emt 00:00:34]}
31. Rfe1 {[%emt 00:00:47]} h3 {[%clk 00:04:45]} {[%emt 00:01:50]} 32. Qe7
{[%clk 00:07:54]} {[%emt 00:00:17]} Rxf3 {[%clk 00:03:28]} {[%emt 00:01:22]} 33.
gxf3 {[%clk 00:05:54]} {[%emt 00:02:02]} Qxf3 {[%clk 00:03:09]} {[%emt
00:00:27]} 34. Rh4+ {[%clk 00:05:44]} {[%emt 00:00:14]} 1-0